Cogmind - Beta 13 *** ADVENTURER MODE // 2024.03.29 @ 17:56:37 Player: FAX_MACHINE_v.0210 Result: Destroyed by G-50 Soldier with Heavy Laser Performance ------------- Evolutions (2) 1000 Regions Visited (3) 600 Robots Destroyed (58) 290 Value Destroyed (1785) 1785 Prototype IDs (0) 0 Alien Tech Used (0) 0 Bonus (0) 0 TOTAL SCORE: 3675 Bonus ------- None Cogmind --------- Core Integrity 0/550 Matter 292/300 Energy 100/100 System Corruption 0% Temperature Cool (9) Movement Core (200) Ox3 Location -8/Materials Parts ------- > --- POWER (2) -------- (None) > --- PROPULSION (2) --- (None) > --- UTILITY (4) ------ Medium Storage Unit Trap Scanner > --- WEAPON (3) ------- (None) > --- INVENTORY (10) --- Aluminum Leg Small Matter Pod (50) Medium Matter Pod (100) Improved Signal Interpreter Peak State ------------ > --- POWER ------------ Light Nuclear Core > --- PROPULSION ------- Aluminum Leg Improved Aluminum Leg > --- UTILITY ---------- Heat Sink Medium Storage Unit Trap Scanner Signal Interpreter > --- WEAPON ----------- Beam Rifle Ion Cannon Light Assault Rifle > --- INVENTORY -------- Aluminum Leg Small Matter Pod Medium Matter Pod [Rating: 18] Favorites ----------- Power Ion Engine Engine Ion Engine Power Core Light Nuclear Core Propulsion Aluminum Leg Treads Armored Treads Leg Aluminum Leg Wheel Wheel Hover Unit Hover Unit Utility Heat Sink Device Heat Sink Storage Medium Storage Unit Processor Signal Interpreter Weapon EM Pulse Gun Energy Gun EM Pulse Gun Energy Cannon Ion Cannon Ballistic Gun Light Assault Rifle Special Weapon Mining Laser Build | -11 -10 -9 -8 ------- Run | Yrd Mat Mat Mat Slots Evolved 4 | . . 2 2 Power 1 | . . 1 . Propulsion . | . . . . Utility 2 | . . 1 1 Weapon 1 | . . . 1 Parts Attached 46 | 5 18 12 11 Power 11 | 1 3 4 3 Engine 10 | 1 3 4 2 Core 1 | . . . 1 Reactor . | . . . . Propulsion 15 | 2 8 2 3 Treads 3 | . 1 2 . Leg 8 | 2 3 . 3 Wheel 3 | . 3 . . Hover 1 | . 1 . . Flight . | . . . . Utility 6 | 1 3 1 1 Device 3 | 1 1 . 1 Storage 2 | . 1 1 . Processor 1 | . 1 . . Hackware . | . . . . Protection . | . . . . Artifact . | . . . . Weapon 14 | 1 4 5 4 Energy Gun 5 | . 2 3 . Energy Cannon 1 | . . . 1 Ballistic Gun 6 | 1 1 2 2 Ballistic Cannon . | . . . . Launcher . | . . . . Special Weapon 2 | . 1 . 1 Impact Weapon . | . . . . Slashing Weapon . | . . . . Piercing Weapon . | . . . . Special Melee Weapon . | . . . . Unidentified Prototypes . | . . . . Parts Lost 20 | . 1 5 14 Power 6 | . 1 3 2 Propulsion 4 | . . . 4 Utility 2 | . . . 2 Weapon 8 | . . 2 6 Highest Loss Streak 9 | . 1 2 9 To Critical Strikes . | . . . . Average Slot Usage (%) 88 | . 96 88 78 Engine 9 | . 13 12 2 Core 2 | . . . 6 Treads 5 | . . 14 2 Leg 14 | . 23 7 13 Wheel 1 | . 4 . . Device 13 | . 13 11 16 Storage 6 | . . 9 9 Processor 10 | . 11 11 8 Energy Gun 12 | . 13 14 7 Energy Cannon 1 | . . . 3 Ballistic Gun 6 | . 4 7 8 Special Weapon 3 | . 9 . . Naked Turns . | . . . . Heaviest Build 29 | 8 9 28 29 Greatest Support 40 | 20 20 40 40 Greatest Overweight (x) 7 | . 1 1 7 Average Overweight (x) . | . . . . Largest Inventory Capacity 25 | 5 25 10 10 Average Capacity 7 | 5 5 9 10 Most Carried 9 | 5 5 9 8 Average Carried 4 | 3 4 6 3 Final Capacity 10 | 5 5 10 10 Final Carried 7 | 5 4 7 4 Class Distribution -------------------- 56% | Mutant 33% | Scavenger-Mutant 10% | Scavenger-Skirmisher Dominant Class ---------------- Mutant | -10/Materials Mutant | -9/Materials Scavenger-Mutant | -8/Materials Resources | -11 -10 -9 -8 ----------- Run | Yrd Mat Mat Mat Matter Collected 1000 | 262 342 244 152 Remotely . | . . . . Salvage Created 2249 | 50 470 893 836 Parts 154 | 3 39 65 47 Haulers Intercepted . | . . . . Recyclers Shooed . | . . . . Parts Field Recycled . | . . . . Retrieved Matter . | . . . . Parts Self-Destructed . | . . . . Prevented . | . . . . Kills | -11 -10 -9 -8 ------- Run | Yrd Mat Mat Mat Combat Hostiles Destroyed 50 | 1 13 17 19 Guns 40 | 1 12 16 11 Cannons 8 | . . . 8 AOE 2 | . 1 1 . Classes Destroyed 7 | 1 2 4 . Worker 1 | . . 1 . Watcher 7 | . 3 1 3 Swarmer 13 | . 6 . 7 Grunt 25 | 1 7 9 8 Brawler 1 | . . 1 . Duelist 2 | . . 1 1 Sentry 9 | . . 6 3 Best Kill Streak 8 | 1 6 6 8 Combat Bots Only 8 | 1 6 3 8 Max Kills in Single Turn 2 | 1 1 1 2 Gunslinging 1 | . . . 1 Exploded 1 | . 1 1 . Melee . | . . . . Uniques/NPCs Destroyed . | . . . . Combat | -11 -10 -9 -8 -------- Run | Yrd Mat Mat Mat Hostile Shots Fired 375 | 3 53 117 202 Missed 120 | 2 18 35 65 Damage Taken 2811 | 8 266 898 1639 Core 727 | . 44 121 562 Absorbed by Shields . | . . . . Ignored by Resistances 825 | 3 85 261 476 Regen/Repaired (Parts) 4 | . 4 . . Core Remaining (%) 83 | 100 82 69 . Volleys Fired 180 | 4 41 61 74 Largest 3 | 1 2 2 3 Hottest 140 | 20 140 80 136 Shots Fired 315 | 4 60 116 135 Gun 287 | 4 56 116 111 Cannon 24 | . . . 24 Launcher . | . . . . Special 4 | . 4 . . Kinetic 128 | 4 15 47 62 Thermal 96 | . 15 8 73 Explosive . | . . . . Electromagnetic 91 | . 30 61 . Robot Hit Streak 30 | 2 25 26 30 Robot Miss Streak 5 | 1 3 2 5 Penetration Max . | . . . . Secondary Targets 11 | . 1 4 6 Max Gunslinging Chain 1 | . 1 1 1 Shots Hit Robots 233 | 2 41 89 101 Core Hits 108 | 2 21 34 51 Critical Kills . | . . . . Critical Parts Destroyed . | . . . . Critical Strikes 5 | . . 3 2 Burn 4 | . . 2 2 Corrupt 1 | . . 1 . Melee Attacks . | . . . . Impact . | . . . . Slashing . | . . . . Piercing . | . . . . Sneak Attacks . | . . . . Combat Hostiles . | . . . . Follow-up Attacks . | . . . . Damage Inflicted 3435 | 27 588 1396 1424 Guns 2796 | 27 541 1238 990 Cannons 434 | . . . 434 Explosions 181 | . 23 158 . Melee . | . . . . Ramming . | . . . . Kinetic 1128 | 27 84 547 470 Thermal 1353 | . 125 274 954 Explosive . | . . . . Electromagnetic 954 | . 379 575 . Impact . | . . . . Slashing . | . . . . Piercing . | . . . . Highest Corruption . | . . . . Average Corruption . | . . . . Corruption Purged . | . . . . Corruption Blocked . | . . . . Overload Shots . | . . . . Overflow Damage 17 | . 15 . 2 Projectiles 16 | . 14 . 2 Explosions 1 | . 1 . . Melee . | . . . . Knockbacks . | . . . . Impact . | . . . . Kinetic . | . . . . Secondary . | . . . . Self-Inflicted Damage 58 | . 32 26 . Shots 2 | . 1 1 . Rammed . | . . . . Targets Rammed . | . . . . Kicked . | . . . . Crushed . | . . . . Highest Temperature 251 | . 20 47 251 Average Temperature 51 | . 11 16 67 Received Heat Transfer 1692 | 6 60 492 1134 Siege Activations . | . . . . Robots Corrupted . | . . . . Combat Hostiles . | . . . . Parts Fried 5 | . 1 4 . Impact Corruptions . | . . . . Robots Melted . | . . . . Combat Hostiles . | . . . . Parts Melted 5 | . . 1 4 Heat Transferred 3152 | . 275 694 2183 Parts Sabotaged . | . . . . Parts Stolen . | . . . . Parts Stripped . | . . . . Power Chain Reactions 3 | . 1 2 . Alert | -11 -10 -9 -8 ------- Run | Yrd Mat Mat Mat Peak Influence 388 | 20 230 388 286 Initial 67 | . 11 7 67 Average 130 | 6 124 144 140 Maximum Alert Level 1 | . 1 1 1 Low Security (%) 77 | 100 70 75 84 Level 1 22 | . 30 24 15 Level 2 . | . . . . Level 3 . | . . . . Level 4 . | . . . . Level 5 . | . . . . High Security . | . . . . Max Security . | . . . . Squads Dispatched 4 | . 1 2 1 Investigation 2 | . 1 . 1 Extermination . | . . . . Reinforcement 2 | . . 2 . Assault . | . . . . Garrison . | . . . . Intercept . | . . . . Searches Triggered . | . . . . Construction Impeded . | . . . . Haulers Reinforced . | . . . . Active Scanning Responses . | . . . . Cargo Convoy Interrupts . | . . . . Stealth | -11 -10 -9 -8 --------- Run | Yrd Mat Mat Mat Distress Signals 4 | . 1 1 2 Communications Jammed . | . . . . Distress Signals . | . . . . Times Spotted 63 | 1 19 19 24 Peak Tracking Total 7 | 1 7 3 6 Tactical Retreats 2 | . 1 1 . Traps | -11 -10 -9 -8 ------- Run | Yrd Mat Mat Mat Traps Triggered 1 | . 1 . . Indirectly . | . . . . Trap Hack Attempts . | . . . . Triggered . | . . . . Disarmed . | . . . . Reprogrammed . | . . . . Reused . | . . . . Traps Extracted . | . . . . Installed . | . . . . Triggered . | . . . . Machines | -11 -10 -9 -8 ---------- Run | Yrd Mat Mat Mat Machines Disabled . | . . . . Max in Single Turn . | . . . . Machines Repaired . | . . . . Machines Dismantled . | . . . . Machines Sabotaged . | . . . . Overloaded Fab Kills . | . . . . Hacking | -11 -10 -9 -8 --------- Run | Yrd Mat Mat Mat Machines Accessed 5 | . 4 . 1 Terminals 3 | . 2 . 1 Fabricators . | . . . . Repair Stations 1 | . 1 . . Recycling Units 1 | . 1 . . Scanalyzers . | . . . . Garrison Access . | . . . . Total Hacks 23 | . 20 . 3 Successful 21 | . 20 . 1 Failed 2 | . . . 2 Catastrophic . | . . . . Database Lockouts . | . . . . Manual 1 | . 1 . . Terminals 10 | . 7 . 3 Fabricators . | . . . . Repair Stations 3 | . 3 . . Recycling Units 10 | . 10 . . Scanalyzers . | . . . . Garrison Access . | . . . . Terminal Hacks 8 | . 7 . 1 Record 1 | . 1 . . Part Schematic 1 | . 1 . . Alert Level 2 | . 2 . . Dispatch Records 1 | . 1 . . Security Status 1 | . . . 1 Hauler Manifests 1 | . 1 . . Zone Layout 1 | . 1 . . Fabricator Hacks . | . . . . Repair Station Hacks 3 | . 3 . . Scan Component 1 | . 1 . . Repair 1 | . 1 . . Refit 1 | . 1 . . Recycling Unit Hacks 10 | . 10 . . Recycle Component 3 | . 3 . . Process 3 | . 3 . . Report Inventory 3 | . 3 . . Retrieve Matter 1 | . 1 . . Scanalyzer . | . . . . Garrison Access Hacks . | . . . . Unauthorized Hacks . | . . . . Terminals . | . . . . Fabricators . | . . . . Repair Stations . | . . . . Recycling Units . | . . . . Scanalyzers . | . . . . Garrison Access . | . . . . Data Cores Recovered . | . . . . Used . | . . . . Hacking Detections 3 | . 2 . 1 Full Trace Events 2 | . 1 . 1 Feedback Events . | . . . . Feedback Blocked . | . . . . Robot Schematics Acquired . | . . . . Robots Built . | . . . . Authchips . | . . . . Time . | . . . . Total Robot Build Rating . | . . . . Part Schematics Acquired 1 | . 1 . . Parts Built . | . . . . Authchips . | . . . . Time . | . . . . Total Part Build Rating . | . . . . Parts Repaired 1 | . 1 . . Time 26 | . 26 . . Parts Recycled 3 | . 3 . . Recycled Matter 39 | . 39 . . Retrieved Matter 39 | . 39 . . Retrieved Components . | . . . . Parts Scanalyzed . | . . . . Part Schematics Acquired . | . . . . Parts Damaged . | . . . . Bothacking | -11 -10 -9 -8 ------------ Run | Yrd Mat Mat Mat Used RIF Installer . | . . . . Robots Hacked . | . . . . Non-combat . | . . . . Combat . | . . . . Robot Hacks Applied . | . . . . Relay Couplers Released . | . . . . Fabnet Peak Effective % . | . . . . Robots Rewired . | . . . . Allies Hacked . | . . . . Hacks Repelled . | . . . . Allies | -11 -10 -9 -8 -------- Run | Yrd Mat Mat Mat Total Allies . | . . . . Largest Group . | . . . . Highest-Rated Group . | . . . . Highest-Rated Ally . | . . . . Total Orders . | . . . . Ally Attacks . | . . . . Total Damage . | . . . . Kills . | . . . . Allies Corrupted . | . . . . Allies Melted . | . . . . Intel | -11 -10 -9 -8 ------- Run | Yrd Mat Mat Mat Robot Analysis Total . | . . . . Derelict Logs Recovered . | . . . . Drone Launches . | . . . . Drone Recoveries . | . . . . Exploration | -11 -10 -9 -8 ------------- Run | Yrd Mat Mat Mat Turns Passed 2821 | 128 920 931 842 Spaces Moved 1500 | 87 634 424 355 Core 34 | 23 . . 11 Treads 286 | . . 252 34 Legs 1075 | 64 529 172 310 Wheels 102 | . 102 . . Hover 3 | . 3 . . Flight . | . . . . Fastest Speed 50 | 50 80 120 120 Average Speed 140 | 101 113 162 173 Slowest Speed 400 | 120 130 190 400 Overloaded Moves . | . . . . Propulsion Burnouts . | . . . . Robots Hopped . | . . . . Cave-ins Triggered . | . . . . Exploration Rate (%) 39 | 6 84 40 26 Regions Visited 3 Branch Regions . Pre-discovered Areas . | . . . . Known Exits Taken 2 | . 1 1 . Unknown Exits Taken 1 | 1 . . . Scrap Searched . | . . . . Spaces Dug . | . . . . Terrain Destroyed 13 | . 4 7 2 Melee . | . . . . Projectile 5 | . 3 . 2 AOE 8 | . 1 7 . Terrain Rammed . | . . . . Walls Destroyed . | . . . . Machines Disabled . | . . . . Actions | -11 -10 -9 -8 --------- Run | Yrd Mat Mat Mat Total 1899 | 121 766 550 462 Wait 126 | 19 49 44 14 Move 1497 | 86 633 423 355 Hop . | . . . . Pick Up 36 | 7 13 9 7 Fast Attach 5 | 3 2 . . Attach 21 | 2 3 7 9 Detach 1 | . . 1 . Swap 20 | . 13 5 2 Drop 13 | . 12 . 1 Fire 180 | 4 41 61 74 Melee . | . . . . Ram . | . . . . Kick . | . . . . Crush . | . . . . Escape Stasis . | . . . . Rewire . | . . . . Trap . | . . . . Miscellaneous . | . . . . Route ------- -11/Scrapyard -10/Materials (discovered 4 exits: *Mat x2 / *Min x2) -9/Materials -8/Materials History --------- Turn | Location | Event 2 | -11/Scrapyard | Met Revision 17 74 | -11/Scrapyard | Discovered new exit (range 8) 129 | -11/Scrapyard | Entered Materials 396 | -10/Materials | Discovered new exit (range 12) 410 | -10/Materials | Identified exit to Mines 616 | -10/Materials | Repaired Lgt. Ion Engine 662 | -10/Materials | Discovered new exit (range 16) 698 | -10/Materials | Identified exit to Materials 734 | -10/Materials | Discovered exit to Materials (range 9) 741 | -10/Materials | Build established: Mutant 940 | -10/Materials | Discovered exit to Mines (range 10) 1049 | -10/Materials | Entered another Materials area 1049 | -9/Materials | Evolved 2 slots: Power x1, Utility x1 1253 | -9/Materials | Discovered new exit (range 8) 1268 | -9/Materials | Identified exit to Materials 1980 | -9/Materials | Entered another Materials area 1980 | -8/Materials | Evolved 2 slots: Utility x1, Weapon x1 2133 | -8/Materials | Lost 4 parts (2n2w) 2367 | -8/Materials | Build established: Scavenger-Mutant 2767 | -8/Materials | Core integrity fell below 50% 2801 | -8/Materials | Destroyed 8 combat bots 2813 | -8/Materials | Core integrity fell below 20% 2822 | -8/Materials | Destroyed by G-50 Soldier with Heavy Laser Last Messages --------------- 02763_ R-06 Scavenger collects Terrain Scan Processor. 02764_ K-01 Serf collects debris. 02765_ G-47 Trooper destroyed. 02766_ Critical hit (Burn: +37). 02776_ Flight Unit melted. 02776_ S-10 Pest destroyed. 02786_ Ion Cannon destroyed. 02786_ Critical hit (Burn: +37). 02787_ Acquired Lgt. Assault Rifle. 02793_ Signal Interpreter destroyed. 02793_ Critical hit (Burn: +37). 02799_ Electrolysis Chamber disabled. 02802_ Lgt. Assault Rifle destroyed. 02804_ K-01 Serf collects debris. 02807_ M-13 Machinist repairs G-47 Trooper. 02809_ K-01 Serf collects debris. 02818_ M-13 Machinist repairs G-50 Soldier. 02820_ R-06 Scavenger collects Lgt. Ion Engine. [Achievement: First Step to Greatness] Map ----- +----------------------------------------------------+ | ?????????????????????????????????????????????????? | | ?????????????????????????????????????????????????? | | ?????????????????????????????????????????????????? | | ?????????????????????????????????????????????????? | | ?????????????????????????????????????????????????? | | ?????????????????????????????????????????????????? | | ?????????????????????????????????????????????????? | | ?????????????????? %????????????????????????????? | | ????????????????? %=????????????????????????????? | | ?????????????????# ????????????????????????????? | | ?????????????????#% #???????????????????????????? | | ?????????????????# #???????????????????????????? | | ?????????????????# #???????????????????????????? | | ??????????????""?# %##??????????????????????????? | | ???????????????"?#=%= ???????????????????????????? | | ???????????????? # = ???????????????????????????? | | ???????????????? # %???????????????????????????? | | ?????????????????+ #???????????????????????????? | | ?????????????????# *#???????????????????????????? | | ?????????????????# %#???????????????????????????? | | ?????????????????# ########????????????????????? | | ??########???????# # #????????????????????? | | ??# #???????# %# """ #????????????????????? | | ??# ! #???????# % #= "" #????????????????????? | | ??# "" #???????# r%mgm" " #????????????????????? | | ??# "Y #??????## [#=kg@ #????????????????????? | | ??# "" #??????## # ! /#????????????????????? | | ???? ???????## ########????????????????????? | | ??####+########## % #??????????????????????????? | | ??# #??????????????????????????? | | ??# #??????????????????????????? | | ??# % #??????????????????????????? | | ??####+######## #??????????????????????????? | | ???# #???# ####??????????????????????????? | | ???# #???# #?????????????????????????????? | | ???# """#???# #?????????????????????????????? | | ???# """#???# #?????????????????????????????? | | ???# """#???# #?????????????????????????????? | | ???# #???# #######???????????????????????? | | ???########???# # /???????????????????????? | | ??????????????# % # """ #???????????????????????? | | ????########### # """ #???????????????????????? | | ???## ## # """ #???????????????????????? | | ???# ## / """ #???????????????????????? | | ????#% ## # """ #???????????????????????? | | ????# "" ## # #???######??????????????? | | ????# """ ##% ####+####? #??????????????? | | ????# S" ## #?# #* """ #??????????????? | | ????# """ ## ### ! # """ #??????????????? | | ????# """ ## + """ #??????????????? | +----------------------------------------------------+ Best States ------------- Heat Dissipation 41 Energy Generation 21 Energy Capacity 415 Matter Stores 300 Matter Capacity 300 Sight Range 16 Terrain Scan Density 10 Resistance: KI 20 Resistance: TH 20 Resistance: EX 20 Resistance: EM 20 Resistance: I 20 Resistance: S 20 Resistance: P 20 Evasion (%) 55 Recoil Reduction 2 Offensive Hacking 10 Item Schematics ----------------- Sensor Array | -10/Materials | Hacked Robot Schematics ------------------ None Fabricated ------------ Nothing Alien Tech Used ----------------- None Achievements -------------- Crack Shot First Step to Greatness Shopping List Storm Trooper Uninvited Guest Challenges ------------ None Game ------ Seed BattleSeismicPit Manual? 0 Play Time 01:11:09 Cumulative 1.1 hours Start 2024.03.29 @ 16:43:25 End 2024.03.29 @ 17:56:37 Sessions 1 Manual Loads 0 Difficulty Adventurer Special Mode None Game No. 2 Rogue 0 Adventurer 2 Explorer 0 Win Type - Total 0 Types 0/0/0/0/0/0/0/0/0 Lore% 1 Gallery% 2 Achievement% 2 Wizard Run 0 Options --------- Layout 1 ASCII 0 Keyboard 0 Movement Mouse Keybinds 0 Fullscreen 1 Font 24/Smallcaps Map View 50x35 Zoom Use 0% Tactical HUD 1 Map Filters NONE Filters NONE Steam 1 RUN: 25d93911-64c9-4582-b6ad-9998543250b5